bitfinex/quotes_ETHUSD_20260302
["timestamp","ask_amount","ask_price","bid_price","bid_amount"]
[1772493803979,0.47552051,2040.9,2039.9,1.874]
[1772493804182,0.47552051,2040.9,2039.9,2.0935008]
[1772493805067,4.68745196,2040.9,2040.0,1.22549019]
[1772493805264,4.21193145,2041.0,2040.1,0.2195008]
[1772493805472,4.21193145,2041.0,2040.2,2.77441312]
[1772493805653,0.47552051,2041.1,2040.2,2.77441312]
[1772493805855,0.47552051,2041.1,2040.2,4.64341312]
[1772493806275,0.47552051,2041.0,2040.2,2.55491232]
[1772493806876,4.21193145,2041.2,2040.2,2.77441312]
[1772493807082,2.82445556,2041.1,2040.3,1.22531]
[1772493807267,2.82445556,2041.0,2040.3,3.09231]
[1772493807469,0.47552051,2040.8,2040.3,1.22531]
[1772493807760,2.82445556,2040.7,2040.2,1.22533541]
[1772493807962,2.82445556,2040.6,2040.2,1.22533541]
[1772493808173,0.47552051,2040.8,2040.2,1.22533541]
[1772493809174,4.68745196,2040.8,2039.9,1.22555027]
[1772493809369,0.47552051,2040.7,2039.9,1.22555027]
[1772493809679,0.47552051,2040.7,2040.0,1.866]
[1772493810287,0.47552051,2040.6,2039.4,1.864]
[1772493810485,4.68745196,2040.4,2039.4,2.0835008]
[1772493811013,4.21193145,2040.2,2039.5,1.863]
[1772493811302,4.21193145,2040.2,2039.4,6.76533613]
[1772493811303,2.9857567,2039.8,2039.4,6.76533613]
[1772493811506,5.69330953,2040.2,2039.5,4.90292214]
[1772493811710,0.47552051,2040.5,2039.5,4.90292214]
[1772493811864,0.47552051,2040.5,2039.6,1.862]
[1772493812468,0.5,2041.0,2039.6,1.862]
[1772493813300,0.5,2040.8,2039.4,1.22579063]
[1772493813477,0.5,2040.8,2039.5,1.86]
[1772493813792,0.5,2040.8,2039.6,1.859]
[1772493813994,0.5,2041.3,2039.7,1.858]
[1772493815401,0.5,2041.3,2039.8,1.22561035]
[1772493816202,0.5,2041.3,2039.9,1.854]
[1772493816522,0.5,2041.3,2039.8,1.22561035]
[1772493816897,0.5,2041.3,2039.9,1.853]
[1772493817197,0.5,2041.3,2040.0,1.852]
[1772493817397,0.5,2041.3,2040.1,2.55491232]
[1772493817596,0.5,2041.2,2040.2,1.22537006]
[1772493817807,0.5,2041.2,2040.2,3.07637006]
[1772493818293,0.5,2041.2,2040.2,1.22537006]
[1772493818699,0.5,2041.2,2040.2,3.07437006]
[1772493818895,0.5,2041.5,2040.2,3.07437006]
[1772493819118,0.5,2040.9,2040.2,1.22537006]
[1772493819289,0.5,2041.4,2040.2,1.22537006]
[1772493819615,0.001,2041.6,2040.2,1.22537006]
[1772493819792,0.501,2041.6,2040.2,1.22537006]
[1772493820392,0.501,2041.6,2040.3,1.848]
[1772493822020,0.501,2041.6,2040.4,1.22524995]
[1772493822201,0.001,2041.2,2040.4,1.22524995]
[1772493822720,0.001,2041.2,2040.5,1.844]
[1772493823016,0.001,2041.2,2040.6,1.844]
[1772493824131,0.001,2041.2,2040.7,1.22506982]
[1772493824903,0.001,2041.2,2040.7,3.06606982]
[1772493825423,0.001,2041.6,2040.7,3.06606982]
[1772493827228,3.76970357,2042.4,2040.7,3.06606982]
[1772493827229,0.47552051,2042.3,2041.0,0.46621651]
[1772493828209,0.48096514,2042.2,2041.2,0.45623249]
[1772493828433,0.48096514,2042.2,2041.3,1.837]
[1772493828831,0.48096514,2042.2,2041.2,0.45623249]
[1772493829020,0.48096514,2042.2,2041.3,1.837]
[1772493830138,1.22421491,2042.2,2041.4,1.22464975]
[1772493830340,0.48096514,2042.1,2041.4,1.22464975]
[1772493830633,0.48096514,2042.1,2041.4,3.05764975]
[1772493831453,0.48096514,2042.1,2041.4,1.22464975]
[1772493831655,0.48096514,2041.9,2041.1,1.832]
[1772493832445,1.22421491,2042.2,2041.1,1.832]
[1772493832446,0.48096514,2041.8,2041.2,1.22476974]
[1772493832852,0.48096514,2042.0,2041.2,1.22476974]
[1772493834761,0.48096514,2041.8,2041.2,1.22476974]
[1772493835957,0.48096514,2041.8,2041.3,1.829]
[1772493836856,0.48096514,2041.8,2041.4,1.22464975]
[1772493837757,0.48096514,2041.8,2041.4,3.05264975]
[1772493838769,0.48096514,2041.7,2040.9,1.22494977]
[1772493838947,0.48096514,2041.5,2040.7,1.22503175]
[1772493839852,0.48096514,2041.5,2040.8,1.828]
[1772493841139,1.70558967,2041.5,2040.9,1.22494977]
[1772493841363,0.48096514,2041.5,2040.9,1.22494977]
[1772493842146,0.48096514,2041.8,2040.9,1.22494977]
[1772493842351,0.48096514,2041.8,2041.0,0.45623249]
[1772493842943,0.001,2041.9,2041.0,0.45623249]
[1772493843373,0.001,2041.9,2041.2,0.45623249]
[1772493843570,0.001,2041.9,2041.3,2.28623249]
[1772493845071,0.48196514,2041.9,2041.3,1.83]
[1772493846149,0.48196514,2041.9,2041.4,1.22464975]
[1772493846350,0.48196514,2041.9,2041.5,1.827]
[1772493846551,0.001,2041.8,2041.5,1.827]
[1772493847151,0.48096514,2042.4,2041.6,0.45623249]
[1772493848172,0.48096514,2042.3,2041.7,1.2244698]
[1772493848372,0.48096514,2042.8,2041.7,1.68070229]
[1772493849848,0.48096514,2042.8,2041.7,1.2244698]
[1772493850049,1.2239902,2042.5,2041.8,1.828]
[1772493850360,0.48096514,2042.4,2041.7,1.828]
[1772493852272,0.48096514,2042.2,2041.7,3.0524428]
[1772493852856,0.48096514,2042.5,2041.7,3.0524428]
[1772493853053,1.70495739,2042.5,2041.7,3.50867529]
[1772493853971,1.70495739,2042.5,2041.8,0.45623249]
[1772493853972,0.48096514,2042.5,2041.8,0.45623249]
[1772493854167,1.70497015,2042.5,2041.9,1.22434987]
[1772493854571,0.48096514,2042.5,2041.9,1.22434987]
[1772493854876,1.7049602,2042.5,2041.9,1.22434987]
[1772493855076,0.48096514,2042.5,2041.9,1.22434987]
[1772493855281,1.70495972,2042.5,2041.9,1.22434987]
[1772493856058,1.70496105,2042.5,2041.9,1.22434987]
[1772493856485,0.48096514,2042.4,2041.8,4.89746828]
[1772493858482,0.48351378,2042.2,2041.3,1.22464975]
[1772493858657,0.48351378,2042.2,2041.5,1.825]
[1772493859261,0.48451378,2042.2,2041.5,1.825]
[1772493861478,0.48351378,2042.4,2041.7,0.47229836]
[1772493862658,0.48351378,2042.4,2041.6,1.22452978]
[1772493864091,0.48351378,2042.6,2041.7,0.47229836]
[1772493868096,0.48351378,2042.5,2041.8,1.22440983]
[1772493869725,0.48351378,2042.5,2041.8,1.69670819]
[1772493870615,0.48351378,2042.4,2041.8,1.69670819]
[1772493870920,0.48351378,2042.4,2041.8,1.811]
[1772493871808,0.48351378,2042.4,2042.0,0.0011]
[1772493872204,0.48351378,2042.2,2042.0,0.0011]
[1772493872410,0.48351378,2042.1,2042.0,0.0011]
[1772493872920,1.68351378,2042.2,2042.0,0.0011]
[1772493873115,0.48351378,2042.1,2041.6,3.03352978]
[1772493873294,0.48451378,2042.3,2041.7,0.47229836]
[1772493875824,0.04835867,2042.5,2041.9,0.47582066]
[1772493878020,0.04835867,2042.5,2042.0,1.22428991]
[1772493878200,1.27234889,2042.5,2042.0,1.22428991]
[1772493878819,0.04835867,2042.5,2042.0,1.22428991]
[1772493878998,1.27235347,2042.5,2042.0,1.22428991]
[1772493879196,1.27224492,2042.7,2042.1,0.47582066]
[1772493879397,0.04835867,2042.7,2042.1,2.28382066]
[1772493879625,1.27223297,2042.7,2042.1,2.28382066]
[1772493880442,1.27223297,2042.7,2042.2,1.22417001]
[1772493881933,1.27222945,2042.7,2042.2,1.22417001]
[1772493885129,0.04835867,2042.6,2041.9,0.47582066]
[1772493885441,0.04835867,2042.6,2042.1,1.809]
[1772493885742,0.001,2042.5,2042.1,1.809]
[1772493886315,0.04835867,2042.4,2042.0,0.0011]
[1772493887013,0.001,2042.5,2042.0,0.0011]
[1772493887215,0.001,2042.5,2042.0,0.47692066]
[1772493888843,0.001,2042.5,2042.0,0.0011]
[1772493888844,0.04935867,2042.5,2042.0,0.0011]
[1772493889026,1.2724088,2042.4,2042.0,0.0011]
[1772493889629,0.04835867,2042.3,2042.0,0.0011]
[1772493890127,0.04835867,2042.3,2041.8,0.0011]
[1772493890432,0.04835867,2042.3,2041.8,1.22549499]
[1772493890641,0.04835867,2042.3,2041.8,1.2255049]
[1772493891248,1.22417001,2042.2,2041.8,0.0011]
[1772493891445,1.27251325,2042.3,2041.8,0.0011]
[1772493891619,1.22409823,2042.4,2041.8,0.50075945]
[1772493893749,1.2724569,2042.4,2041.8,1.72512247]
[1772493894245,0.04835867,2042.3,2041.8,1.72512247]
[1772493895752,0.04835867,2042.1,2041.6,0.49965945]
[1772493895930,0.04835867,2042.1,2041.5,0.0011]
[1772493896248,0.04835867,2042.0,2041.5,0.0011]
[1772493896628,0.04835867,2042.0,2041.5,1.72534919]
[1772493898124,1.22429818,2042.0,2041.6,0.49965945]
[1772493898537,1.22429818,2042.0,2041.8,0.0011]
[1772493899562,0.04835867,2041.9,2041.5,0.0011]
[1772493900458,1.2727685,2041.8,2041.5,0.0011]
[1772493900963,0.04835867,2042.1,2041.5,0.50075945]
[1772493901165,4.94514576,2042.2,2041.5,0.50075945]
[1772493901460,1.2,2041.9,2041.5,0.50075945]
[1772493901943,1.2,2041.9,2041.6,1.804]
[1772493902281,1.2,2041.9,2041.5,0.0011]
[1772493902485,1.27280472,2041.8,2041.3,3.02766626]
[1772493906058,1.27280472,2041.8,2041.2,1.72440517]
[1772493906255,0.04835867,2041.7,2041.1,1.8081]
[1772493906945,0.04835867,2041.4,2040.9,0.0011]
[1772493907850,0.04835867,2041.2,2040.6,1.8091]
[1772493908052,1.27318841,2041.1,2040.6,1.8091]
[1772493909168,1.27318841,2041.1,2040.6,3.03422159]
[1772493909374,1.27318841,2041.1,2040.6,1.8091]
[1772493910268,1.27318841,2041.1,2040.6,3.03422341]
[1772493910472,1.27318841,2041.1,2040.6,2.30875945]
[1772493910773,1.27318841,2041.1,2041.0,0.0011]
[1772493910950,1.22480215,2041.2,2041.0,0.0011]
[1772493912572,0.04835867,2041.1,2040.6,2.30875945]
[1772493912770,0.04835867,2041.1,2040.3,0.49965945]
[1772493912962,0.04835867,2041.1,2040.4,0.49965945]
[1772493913762,1.22480215,2041.2,2040.4,0.49965945]
[1772493914752,1.22469838,2041.4,2040.6,0.49965945]
[1772493915481,1.2,2041.5,2040.6,0.49965945]
[1772493916980,2.42459599,2041.5,2040.8,0.48305448]
[1772493917281,1.2,2041.5,2041.0,0.48305448]
[1772493919174,1.2,2041.5,2041.1,1.71054136]
[1772493919985,1.2,2041.5,2041.2,0.48571162]
[1772493920181,1.2,2041.5,2041.1,1.22482974]
[1772493920688,1.2,2041.5,2041.1,1.795]
[1772493920992,2.47295397,2041.5,2040.9,1.22490302]
[1772493921193,0.04835867,2041.4,2040.8,3.50568055]
[1772493921397,1.22470974,2041.3,2040.8,3.50568055]
[1772493921693,0.04835867,2041.2,2040.7,1.22502488]
[1772493921897,0.04835867,2041.2,2040.5,3.02018559]
[1772493922394,0.04835867,2041.1,2040.5,1.795]
[1772493922696,0.04835867,2041.1,2040.8,0.0011]
[1772493923500,1.22488975,2041.0,2040.8,0.0011]
[1772493925584,0.04835867,2041.0,2040.8,0.0011]
[1772493927281,6.22482974,2041.1,2040.8,0.0011]
[1772493928106,6.27318841,2041.1,2040.8,0.0011]
[1772493928636,0.04835867,2041.0,2040.8,0.0011]
[1772493930101,1.22494977,2040.9,2040.8,0.0011]
[1772493931723,5.0,2041.1,2040.8,0.0011]
[1772493931917,5.0,2041.1,2040.8,0.48681162]
[1772493932118,5.0,2041.1,2040.9,1.22494977]
[1772493932502,6.22483528,2041.1,2040.8,0.0011]
[1772493932826,5.0,2041.1,2040.8,0.48681162]
[1772493933027,6.22483101,2041.1,2040.8,0.48681162]
[1772493933530,5.0,2041.1,2040.8,0.48681162]
[1772493933829,6.22483308,2041.1,2040.8,0.48681162]
[1772493935825,5.0,2041.1,2040.8,1.71181148]
[1772493936916,5.0,2041.1,2040.9,0.48571162]
[1772493937934,3.51673331,2041.1,2040.9,0.48571162]
[1772493938135,0.001,2041.3,2040.9,0.48571162]
[1772493939840,0.001,2041.3,2041.0,1.22488975]
[1772493940614,0.001,2041.3,2041.0,1.71060137]
[1772493941540,0.001,2041.3,2041.1,0.48571162]
[1772493944030,1.22552955,2041.7,2041.3,0.48571162]
[1772493944752,1.22552955,2041.7,2040.9,4.89975401]
[1772493944753,0.49209222,2041.4,2040.8,1.22610418]
[1772493945265,0.49209222,2041.6,2040.9,0.48571162]
[1772493946353,1.71662752,2041.6,2041.1,0.48571162]
[1772493948254,1.22552709,2041.7,2041.3,0.48395405]
[1772493952761,1.22552709,2041.7,2041.4,0.48395405]
[1772493952762,0.001,2041.7,2041.4,0.48395405]
[1772493953537,1.70335979,2042.2,2041.6,0.48395405]
[1772493954550,1.70335979,2042.2,2041.7,1.2244698]
[1772493954955,1.70335979,2042.2,2041.6,0.48395405]
[1772493955156,0.47915123,2042.1,2041.4,0.48395405]
[1772493955354,0.47915123,2042.1,2041.5,1.783]
[1772493956040,0.47915123,2041.7,2041.0,0.48395405]
[1772493956239,0.47915123,2041.7,2041.1,1.783]
[1772493956655,0.47915123,2041.5,2040.8,1.71003562]
[1772493956856,0.47915123,2041.5,2040.8,3.49303562]
[1772493957063,0.47915123,2041.5,2040.9,2.26595405]
[1772493957778,0.47915123,2041.5,2040.9,1.782]
[1772493958576,0.47915123,2041.5,2041.3,0.0011]
[1772493958794,1.70380098,2041.4,2041.3,0.0011]
[1772493960759,1.70380098,2041.4,2041.0,0.0011]
[1772493961168,0.47915123,2041.3,2041.0,0.0011]
[1772493962780,1.22476974,2041.2,2041.0,0.0011]
[1772493962954,1.70392097,2041.2,2041.0,0.0011]
[1772493963363,1.22452978,2041.6,2041.0,0.0011]
[1772493963562,0.47915123,2041.5,2041.0,0.0011]
[1772493963881,0.47915123,2041.5,2041.0,0.48505405]
[1772493965079,1.22464975,2041.4,2041.0,0.48505405]
[1772493965385,0.47915123,2041.3,2041.0,0.0011]
[1772493965964,0.47915123,2041.3,2040.8,0.0011]
[1772493966166,0.47915123,2041.1,2040.8,0.0011]
[1772493966395,0.47915123,2041.1,2040.5,0.0011]
[1772493966790,0.47915123,2040.8,2040.5,0.0011]
[1772493967662,0.47915123,2040.6,2040.5,0.0011]
[1772493967890,0.47915123,2040.6,2040.3,0.0011]
[1772493968077,2.8801671,2040.3,2039.8,0.0011]
[1772493968276,4.80203174,2040.6,2039.8,1.71064027]
[1772493968277,0.47915123,2040.5,2039.8,1.71064027]
[1772493968488,2.40101587,2040.6,2039.9,0.48395405]
[1772493968668,2.8801671,2040.6,2039.9,0.48395405]
[1772493968869,0.47915123,2040.5,2039.9,0.48395405]
[1772493969168,0.47915123,2040.5,2039.8,0.0011]
[1772493969811,1.70440118,2040.4,2039.8,0.0011]
[1772493970998,1.70440118,2040.4,2040.0,0.0011]
[1772493973811,0.47915123,2040.3,2039.7,1.22564575]
[1772493974130,1.22537006,2040.2,2039.7,1.7095998]
[1772493976409,1.70452129,2040.2,2039.7,1.7095998]
[1772493976719,1.70452129,2040.2,2039.7,1.70961977]
[1772493977086,1.70452129,2040.2,2039.7,0.48395405]
[1772493978821,1.70452129,2040.2,2039.7,1.70962083]
[1772493978999,0.46240543,2040.1,2039.5,1.69266853]
[1772493979388,0.46240543,2040.1,2039.6,0.46581931]
[1772493979621,0.46240543,2040.1,2039.5,1.22684922]
[1772493979622,0.46240543,2039.9,2039.5,0.0011]
[1772493980920,1.68801578,2039.8,2039.2,0.46581931]
[1772493981101,0.46240543,2039.7,2039.2,0.46581931]
[1772493982289,0.46240543,2039.7,2039.1,1.22599601]
[1772493982696,0.46240543,2039.7,2039.4,0.0011]
[1772493982895,1.22573053,2039.6,2039.4,0.0011]
[1772493984499,1.68812474,2039.7,2039.4,0.0011]
[1772493986019,0.46240543,2039.6,2038.9,0.0011]
[1772493986205,11.3285972,2039.7,2038.6,0.46581931]
[1772493986206,0.46240543,2039.3,2038.6,0.46581931]
[1772493986532,10.05468176,2039.9,2038.6,0.46581931]
[1772493986533,1.22652412,2040.0,2038.7,0.46581931]
[1772493986735,0.001,2040.0,2038.9,0.46581931]
[1772493987112,1.22649263,2040.0,2038.9,0.46581931]
[1772493987932,0.001,2040.0,2039.1,0.46581931]
[1772493988109,0.001,2040.0,2039.2,2.23681931]
[1772493988110,0.46340543,2040.0,2039.2,2.23681931]
[1772493988315,0.46340543,2040.0,2039.3,0.46581931]
[1772493989611,0.46340543,2040.0,2039.1,1.771]
[1772493989612,0.46240543,2039.9,2039.1,0.46581931]
[1772493989812,0.46240543,2039.6,2039.1,0.46581931]
[1772493990131,6.59103174,2040.0,2039.2,0.46581931]
[1772493990132,5.36497871,2039.8,2039.2,0.46581931]
[1772493990736,0.46240543,2039.7,2039.2,0.46581931]
[1772493990935,0.46240543,2039.7,2039.0,0.46581931]
[1772493992140,1.22573053,2039.6,2039.1,0.46581931]
[1772493995269,1.22566566,2039.8,2039.3,0.46691931]
[1772493995938,1.68807109,2039.8,2039.3,0.46691931]
[1772493996442,1.68807109,2039.8,2039.3,1.69282915]
[1772493996829,1.68807109,2039.8,2039.3,0.46691931]
[1772493997032,1.68807109,2039.8,2039.3,1.69282658]
[1772493997256,4.90296413,2040.0,2039.4,0.46581931]
[1772493997257,1.22653454,2040.0,2039.4,0.46581931]
[1772493997667,0.001,2040.0,2039.4,0.46581931]
[1772493997827,1.22649261,2040.0,2039.4,0.46581931]
[1772493998230,0.001,2040.0,2039.4,0.46581931]
[1772493998534,0.001,2040.0,2039.6,0.46581931]
[1772494000628,0.46340543,2040.0,2039.5,1.22576988]
[1772494000836,0.46340543,2040.0,2039.5,1.69158919]
[1772494001167,0.46340543,2040.0,2039.5,0.46581931]
[1772494001538,0.46340543,2040.0,2039.5,1.69160704]
[1772494001738,0.001,2040.0,2039.6,0.46581931]
[1772494003553,0.001,2040.0,2039.6,1.69154672]
[1772494003940,0.001,2040.0,2039.6,0.46581931]
[1772494004439,0.001,2040.0,2039.7,0.46581931]
[1772494005648,0.46240543,2040.7,2039.8,0.46581931]
[1772494005870,0.46240543,2040.6,2039.8,0.46581931]
[1772494006180,4.90032634,2040.7,2040.0,0.46581931]
[1772494006639,1.68729518,2041.0,2040.0,0.46581931]
[1772494007671,1.68729518,2041.0,2040.2,0.45931872]
[1772494008182,0.001,2041.1,2040.4,0.45931872]
[1772494008352,1.22584186,2041.1,2040.4,0.45931872]
[1772494009880,0.001,2041.1,2040.6,0.45931872]
[1772494011480,1.22457547,2041.6,2040.6,0.45931872]
[1772494011979,1.68467252,2041.7,2040.7,1.22506982]
[1772494012155,1.68467252,2041.7,2040.8,0.45931872]
[1772494013075,1.68467252,2041.7,2040.9,1.765]
[1772494013265,1.68467252,2041.7,2041.0,0.45931872]
[1772494013693,0.46015811,2041.6,2040.7,0.45931872]
[1772494014278,0.46015811,2041.4,2040.8,1.2250098]
[1772494014682,0.46015811,2041.4,2040.8,1.68432852]
[1772494016284,1.68481135,2041.4,2040.9,0.45931872]
[1772494016588,1.68481015,2041.4,2040.9,0.45931872]
[1772494017888,1.22461707,2041.5,2040.9,0.45931872]
[1772494018095,1.22450426,2041.7,2040.9,0.45931872]
[1772494018262,1.68466237,2041.7,2041.1,0.45931872]
[1772494018463,0.46015811,2041.6,2041.1,0.45931872]
[1772494018989,1.22450426,2041.7,2041.1,0.45931872]
[1772494019291,1.68466237,2041.7,2041.1,0.45931872]
[1772494019672,1.22442371,2041.8,2041.2,0.45931872]
[1772494020079,1.68458182,2041.8,2041.2,0.45931872]
[1772494020687,1.22438876,2041.9,2041.3,0.45931872]
[1772494021090,1.22529387,2042.0,2041.3,0.45931872]
[1772494023488,1.22529387,2042.0,2041.4,1.68396847]
[1772494023698,1.22529387,2042.0,2041.5,0.45931872]
[1772494024496,0.001,2042.0,2041.5,0.45931872]
[1772494025703,0.001,2042.0,2041.5,1.68390216]
[1772494026699,0.46015811,2041.9,2041.0,3.44420847]
[1772494026909,0.46015811,2041.9,2041.1,0.45931872]
[1772494027075,0.001,2042.0,2041.1,0.45931872]
[1772494027274,0.46115811,2042.0,2041.1,0.45931872]
[1772494027570,0.001,2042.0,2041.1,0.45931872]
[1772494027792,0.001,2042.0,2041.3,0.45931872]
[1772494029200,0.46015811,2042.2,2041.3,0.45931872]
[1772494029504,0.46015811,2042.2,2041.4,1.759]
[1772494029699,0.46015811,2042.2,2041.3,0.45931872]
[1772494029700,0.46015811,2042.0,2041.3,1.68401452]
[1772494029880,0.46015811,2042.0,2041.4,0.45931872]
[1772494032106,1.68447784,2042.0,2041.5,1.22458976]
[1772494032305,1.68447784,2042.0,2041.4,0.46041872]
[1772494032485,0.46015811,2041.7,2041.4,0.0011]
[1772494032888,0.46015811,2041.7,2041.2,0.0011]
[1772494034113,1.68468789,2041.6,2041.2,0.0011]
[1772494037603,1.22449278,2041.7,2041.2,0.0011]
[1772494037908,1.22449278,2041.7,2041.2,0.46053184]
[1772494038214,1.6951861,2041.7,2041.2,0.46053184]
[1772494038612,1.22449278,2041.7,2041.2,0.46053184]
[1772494039019,0.001,2041.8,2041.2,1.68526136]
[1772494039388,0.001,2041.8,2041.3,0.45943184]
[1772494041112,0.001,2041.8,2041.5,0.45943184]
[1772494043319,0.001,2042.3,2041.7,0.45943184]
[1772494043617,1.2251199,2042.3,2041.7,0.45943184]
[1772494044222,0.001,2042.3,2041.7,0.45943184]
[1772494044919,1.22511514,2042.3,2041.7,0.45943184]
[1772494045419,1.22511514,2042.3,2041.8,1.68384167]
[1772494046021,0.47069332,2042.2,2041.4,0.46053184]
[1772494046199,1.22511514,2042.3,2041.5,0.45943184]
[1772494046403,1.69580846,2042.3,2041.5,0.45943184]
[1772494047213,0.001,2042.3,2041.5,0.45943184]
[1772494047531,0.001,2042.3,2041.7,0.45943184]
[1772494050130,0.001,2042.3,2041.9,0.45943184]
[1772494052329,0.001,2042.3,2041.9,1.6837333]
[1772494052698,0.001,2042.3,2041.6,4.89808769]
[1772494052699,0.47169332,2042.3,2041.6,2.21143184]
[1772494053429,0.47169332,2042.3,2041.7,0.45943184]
[1772494054431,1.69584856,2042.3,2041.8,1.22440983]
[1772494055126,0.001,2042.3,2041.8,1.68384167]
[1772494055430,1.69581266,2042.3,2041.7,1.22442458]
[1772494055749,1.69581266,2042.3,2041.7,1.68385642]
[1772494056023,1.69581266,2042.3,2041.7,1.22442458]
[1772494056259,1.69581266,2042.3,2041.8,0.45943184]
[1772494056530,0.47069332,2042.2,2041.6,3.43591926]
[1772494056837,0.47069332,2042.2,2041.7,0.45943184]
[1772494057009,0.001,2042.3,2042.0,0.0011]
[1772494057325,0.001,2042.1,2042.0,0.0011]
[1772494067138,0.001,2042.3,2042.0,0.46053184]
[1772494067715,0.001,2042.3,2042.1,0.48025317]
[1772494069519,0.48986994,2042.3,2042.0,0.0011]
[1772494070055,1.71398716,2042.3,2042.0,0.0011]
[1772494070412,0.48986994,2042.3,2042.0,0.0011]
[1772494070616,0.001,2042.1,2042.0,0.0011]
[1772494071757,0.001,2042.1,2042.0,0.48135317]
[1772494073552,0.001,2042.1,2042.0,1.70564308]
[1772494074923,0.001,2042.1,2042.0,1.22538991]
[1772494075476,0.001,2042.1,2042.0,1.70564308]
[1772494076658,0.001,2042.1,2042.0,3.46564308]
[1772494080376,0.001,2042.1,2042.0,2.24135317]
[1772494080574,0.001,2042.1,2042.0,1.7641]
[1772494081785,0.001,2042.1,2042.0,2.98838991]
[1772494081965,0.001,2042.3,2042.1,0.48025317]
[1772494082549,0.001,2042.3,2042.0,3.46864256]
[1772494082982,0.001,2042.3,2042.2,0.0011]
[1772494083189,0.48986994,2042.3,2042.2,0.0011]
[1772494084487,1.71398001,2042.3,2042.2,0.0011]
[1772494084786,1.22511007,2042.3,2042.2,0.0011]
[1772494084966,0.001,2042.3,2042.2,0.0011]
[1772494085162,0.001,2042.3,2042.2,0.48135317]
[1772494085367,0.001,2042.3,2042.2,0.0011]
[1772494087086,0.48080637,2042.3,2042.0,0.0011]
[1772494087294,0.48080637,2042.3,2041.8,0.0011]
[1772494087295,0.48886994,2042.0,2041.8,0.0011]
[1772494087678,0.96867631,2041.9,2041.8,0.0011]
[1772494088073,0.96867631,2041.9,2041.4,3.46899615]
[1772494089076,1.22440983,2041.8,2041.4,2.24435317]
[1772494089276,0.96867631,2041.7,2041.2,0.48135317]
[1772494089489,0.96867631,2041.7,2041.2,1.70612257]
[1772494090356,0.48886994,2041.7,2041.2,1.70612257]
[1772494091293,1.71335741,2041.7,2041.2,1.70612257]
[1772494093388,1.71334457,2041.7,2041.3,0.48025317]
[1772494095577,0.48886994,2041.7,2041.5,0.0011]
[1772494095796,1.71334569,2041.7,2041.5,0.0011]
[1772494098573,0.45783417,2041.6,2041.2,0.0011]
[1772494098828,0.45783417,2041.6,2040.2,0.47303135]
[1772494098829,0.45783417,2041.2,2040.2,0.47303135]
[1772494098972,0.45783417,2040.6,2040.2,0.0011]
[1772494099178,0.93764054,2040.3,2040.2,0.0011]
[1772494099377,0.93764054,2040.3,2040.0,0.0011]
[1772494099986,2.16295264,2040.3,2040.0,0.0011]
[1772494100391,0.45783417,2040.0,2039.7,0.0011]
[1772494101682,1.22543012,2040.1,2039.7,0.0011]
[1772494101876,0.45783417,2040.0,2039.7,0.0011]
[1772494102507,0.45783417,2039.9,2039.3,0.0011]
[1772494102887,0.45783417,2039.9,2039.4,0.47193135]
[1772494104185,1.22560602,2039.9,2039.5,0.47193135]
[1772494105909,1.22553788,2040.0,2039.5,0.47193135]
[1772494106706,1.22553788,2040.0,2039.5,1.69771115]
[1772494107209,1.68337205,2040.0,2039.5,1.69771442]
[1772494108310,1.68337205,2040.0,2039.7,0.0011]
[1772494109901,0.45783417,2040.1,2039.7,0.0011]
[1772494110094,0.45783417,2040.1,2039.7,0.47303135]
[1772494110295,2.24283417,2040.3,2039.7,0.47303135]
[1772494110802,2.24283417,2040.3,2039.5,0.0011]
[1772494110803,0.45783417,2040.0,2039.5,0.0011]
[1772494111116,1.22537006,2040.2,2039.5,0.0011]
[1772494111117,0.45783417,2039.7,2039.5,0.0011]
[1772494111408,0.45783417,2039.7,2039.3,0.0011]
[1772494113110,1.22573053,2039.6,2039.3,0.0011]
[1772494113309,1.6835647,2039.6,2039.3,0.0011]
[1772494114311,0.45783417,2039.5,2039.3,0.0011]
[1772494114985,1.22565685,2039.8,2039.3,0.47303135]
[1772494115812,1.68349102,2039.8,2039.3,0.47303135]
[1772494116315,0.45783417,2039.5,2039.2,0.0011]
[1772494116727,0.45783417,2039.5,2038.8,1.22616943]
[1772494117224,0.45783417,2039.4,2038.8,1.22616943]
[1772494117806,0.45783417,2039.3,2038.8,1.69810078]
[1772494118726,0.45783417,2039.2,2038.2,0.47193135]
[1772494119927,1.68383448,2039.2,2038.3,1.22651228]
[1772494120137,1.68383448,2039.2,2038.4,0.47193135]
[1772494120317,0.45783417,2039.1,2038.4,0.47193135]
[1772494120626,5.36143436,2039.4,2038.4,0.47193135]
[1772494120830,0.001,2039.5,2038.4,0.47193135]
[1772494120831,1.2,2039.0,2038.4,0.47193135]
[1772494121138,1.22679252,2039.5,2039.0,0.47193135]
[1772494121139,1.68463402,2039.5,2039.0,0.47193135]
[1772494121430,0.45883417,2039.5,2039.0,0.47193135]
[1772494121606,4.90216119,2040.1,2039.0,0.47193135]
[1772494121607,0.45783417,2040.1,2039.0,0.47193135]
[1772494122010,0.45783417,2039.9,2039.2,0.47193135]
[1772494122206,0.45783417,2039.5,2038.9,0.0011]
[1772494122437,0.45783417,2039.5,2038.9,1.22724162]
[1772494122802,0.45783417,2039.5,2038.9,0.0011]
[1772494123404,0.45783417,2039.5,2038.9,1.22724375]
[1772494124244,0.45783417,2039.3,2038.9,0.0011]
[1772494124445,1.22585074,2039.4,2038.9,0.0011]
[1772494124446,1.22585074,2039.4,2038.9,0.47303135]
[1772494124820,1.68368491,2039.4,2038.9,0.47303135]
[1772494125540,1.22585074,2039.4,2038.9,0.0011]
[1772494125747,1.2,2039.2,2038.9,0.0011]
[1772494126113,1.2,2039.2,2038.9,1.22725135]
[1772494126318,1.2,2039.2,2038.9,1.6991827]
[1772494126520,1.2,2039.2,2039.0,0.47193135]
[1772494126716,0.7,2039.2,2039.1,0.47193135]
[1772494127551,1.2259316,2039.3,2038.9,0.0011]
[1772494128245,1.2259316,2039.3,2038.9,0.4799581]
[1772494128746,1.22583632,2039.5,2038.9,0.4799581]
[1772494129849,6.73703514,2040.6,2038.9,0.4799581]
[1772494129850,1.68410044,2040.1,2038.9,0.4799581]
[1772494130051,1.68410044,2040.1,2039.0,0.4788581]
[1772494130242,0.45867032,2040.0,2039.2,0.4788581]
[1772494132760,1.22555027,2039.9,2039.4,0.4788581]
[1772494132931,0.001,2039.8,2039.4,0.4788581]
[1772494134962,0.001,2039.8,2039.4,1.70469987]
[1772494134963,1.22661035,2039.8,2039.4,1.70469987]